Cogmind - Beta 16.1 @@@ ROGUE MODE // 2026.03.21 @ 22:42:15 // Winter2019/RPGLIKE Player: john Result: Destroyed self via exploding Fusion Modulator Performance ------------- Evolutions (2) 1000 Regions Visited (4) 800 Robots Destroyed (57) 285 Value Destroyed (1732) 1732 Prototype IDs (0) 0 Alien Tech Used (0) 0 Bonus (15) 15 TOTAL SCORE: 3832 Bonus ------- High Alert Combat Kills 15 Cogmind --------- Core Integrity 0/1000 Matter 289/300 Energy 58/100 System Corruption 0% Temperature Cool (12) Movement Walking (105) Location -8/Materials Parts ------- > --- POWER (1) -------- (None) > --- PROPULSION (2) --- Aluminum Leg Aluminum Leg > --- UTILITY (3) ------ Improved Terrain Scanner Tractor Beam High-powered Tractor Beam > --- WEAPON (2) ------- Rocket Launcher Improved Grenade Launcher > --- INVENTORY (2) ---- Plasma Cutter Peak State ------------ > --- POWER ------------ Light Nuclear Core > --- PROPULSION ------- Aluminum Leg Aluminum Leg > --- UTILITY ---------- Improved Terrain Scanner Tractor Beam High-powered Tractor Beam > --- WEAPON ----------- Rocket Launcher Rocket Launcher > --- INVENTORY -------- Plasma Cutter [Rating: 16] Favorites ----------- Power Improved Ion Engine Engine Improved Ion Engine Power Core Light Nuclear Core Propulsion Aluminum Leg Leg Aluminum Leg Utility Improved Terrain Scanner Device Improved Terrain Scanner Protection Power Shielding Weapon EM Pulse Cannon Energy Gun Small Laser Energy Cannon EM Pulse Cannon Ballistic Gun Heavy Assault Rifle Launcher Rocket Launcher Special Weapon Mining Laser Build | -11 -10 -9 -9 -8 ------- Run | Yrd Mat Mat Min Mat Slots Evolved 4 | 3 . 1 . . Power . | . . . . . Propulsion 1 | 1 . . . . Utility 2 | 2 . . . . Weapon 1 | . . 1 . . Parts Attached 22 | 6 3 8 3 2 Power 3 | 1 . 2 . . Engine 2 | 1 . 1 . . Core 1 | . . 1 . . Reactor . | . . . . . Propulsion 2 | 2 . . . . Treads . | . . . . . Leg 2 | 2 . . . . Wheel . | . . . . . Hover . | . . . . . Flight . | . . . . . Utility 5 | 2 1 1 . 1 Device 3 | 2 . . . 1 Storage . | . . . . . Processor . | . . . . . Hackware . | . . . . . Protection 2 | . 1 1 . . Artifact . | . . . . . Weapon 12 | 1 2 5 3 1 Energy Gun 3 | 1 1 1 . . Energy Cannon 2 | . . 2 . . Ballistic Gun 2 | . . 2 . . Ballistic Cannon . | . . . . . Launcher 3 | . . . 2 1 Special Weapon 2 | . 1 . 1 . Impact Weapon . | . . . . . Slashing Weapon . | . . . . . Piercing Weapon . | . . . . . Special Melee Weapon . | . . . . . Unidentified Prototypes . | . . . . . Corrupted Parts 1 | . . 1 . . System Corruption 10 | . . 10 . . Parts Lost 3 | . . 1 . 2 Power 1 | . . . . 1 Propulsion . | . . . . . Utility 1 | . . 1 . . Weapon 1 | . . . . 1 Highest Loss Streak 2 | . . 1 . 2 To Critical Strikes . | . . . . . Average Backups . | . . . 1 1 Power . | . . . . . Propulsion . | . . . . . Utility . | . . . . . Weapon . | . . . . . Tool/Special . | . . . . . Unused Backups 1 | . . . . 1 Power . | . . . . . Propulsion . | . . . . . Utility . | . . . . . Weapon . | . . . . . Tool/Special 1 | . . . . 1 Average Slot Usage (%) 88 | . 88 89 87 83 Engine 7 | . 14 9 . . Core 4 | . . 2 12 7 Leg 25 | . 28 25 25 25 Device 25 | . 28 25 25 29 Protection 3 | . 2 5 . . Energy Gun 4 | . 6 6 . . Energy Cannon 5 | . . 7 3 . Ballistic Gun 4 | . . 6 . . Launcher 5 | . . . 20 21 Special Weapon 1 | . 7 . 1 . Peak Build Rating 16 | 8 9 15 15 16 Average Rating 11 | 4 8 11 13 12 On Entrance 9 | . 8 9 15 13 Avg Prop Armor Cover (%) . | . . . . . Naked Turns . | . . . . . Heaviest Build 21 | 7 7 21 19 16 Greatest Support 25 | 20 20 20 20 25 Greatest Overweight (x) 1 | . . 1 . . Average Overweight (x) . | . . . . . Largest Inventory Capacity 2 | . . 2 2 2 Average Capacity 1 | . . 1 2 2 Most Carried 2 | . . 2 2 1 Average Carried . | . . . 1 1 Final Capacity 2 | . . 2 2 2 Final Carried 2 | . . 2 1 1 Class Distribution -------------------- 67% | Mutant 24% | Scavenger-Mutant 7% | Skirmisher Dominant Class ---------------- Mutant | -10/Materials Mutant | -9/Materials Mutant | -9/Mines Skirmisher | -8/Materials Resources | -11 -10 -9 -9 -8 ----------- Run | Yrd Mat Mat Min Mat Matter Collected 971 | 260 30 294 175 212 Remotely 971 | 260 30 294 175 212 Salvage Created 1784 | 116 82 929 174 483 Parts 107 | 4 6 74 7 16 Haulers Intercepted . | . . . . . Recyclers Shooed . | . . . . . Parts Field Recycled . | . . . . . Retrieved Matter . | . . . . . Parts Self-Destructed . | . . . . . Prevented . | . . . . . Parts Restored . | . . . . . Kills | -11 -10 -9 -9 -8 ------- Run | Yrd Mat Mat Min Mat Combat Hostiles Destroyed 49 | . 3 24 14 8 Guns 22 | . 3 19 . . Cannons 4 | . . 4 . . AOE 22 | . . . 14 8 Classes Destroyed 13 | 2 1 6 2 2 Worker 3 | . . 2 . 1 Builder 1 | . . . . 1 Tunneler 3 | 2 1 . . . Recycler 3 | 1 . . . 2 Operator 1 | . . 1 . . Watcher 6 | . . 4 . 2 Swarmer 11 | . 3 5 . 3 Grunt 16 | . . 10 3 3 Duelist 1 | . . 1 . . Sentry 8 | . . 8 . . Demolisher 2 | . . . 2 . Specialist 2 | . . . . 2 Assembled 9 | . . . 9 . Best Kill Streak 14 | 2 3 9 11 14 Combat Bots Only 11 | . 3 8 11 6 Max Kills in Single Turn 5 | 1 1 3 5 4 Gunslinging . | . . . . . Exploded 5 | . . . 5 3 Melee . | . . . . . Uniques/NPCs Destroyed . | . . . . . Combat | -11 -10 -9 -9 -8 -------- Run | Yrd Mat Mat Min Mat Hostile Shots Fired 165 | . 34 128 . 3 Missed 45 | . 7 37 . 1 Hits 120 | . 27 91 . 2 Projectile 120 | . 27 91 . 2 Critical Strikes 2 | . . 2 . . Damage Taken 2436 | . 208 1225 659 344 Core 1988 | . 155 946 578 309 Absorbed by Shields . | . . . . . Redirected to Core 1421 | . 133 708 320 260 Redirected to Shielding 17 | . 9 8 . . Ignored by Resistances 31 | . . . . 31 Core Remaining (%) 67 | 100 74 . 29 . Volleys Fired 137 | 14 17 89 9 8 Largest 2 | 1 1 2 2 2 Hottest 126 | 50 100 126 66 69 Shots Fired 212 | 14 17 150 18 13 Gun 149 | 14 9 126 . . Cannon 24 | . . 24 . . Launcher 31 | . . . 18 13 Special 8 | . 8 . . . Kinetic 60 | . . 60 . . Thermal 97 | 14 17 66 . . Explosive 31 | . . . 18 13 Electromagnetic 24 | . . 24 . . Robot Hit Streak 28 | 12 6 28 5 2 Robot Miss Streak 4 | 1 1 4 1 1 Penetration Max . | . . . . . Secondary Targets 3 | . . 3 . . Max Gunslinging Chain 1 | . . 1 . . Shots Hit Robots 149 | 13 7 124 3 2 Core Hits 77 | 4 4 51 9 9 Critical Kills . | . . . . . Critical Parts Destroyed . | . . . . . Critical Strikes . | . . . . . Melee Attacks . | . . . . . Impact . | . . . . . Slashing . | . . . . . Piercing . | . . . . . Sneak Attacks . | . . . . . Combat Hostiles . | . . . . . Follow-up Attacks . | . . . . . Damage Inflicted 13599 | 166 79 2009 4009 7336 Guns 1657 | 166 79 1412 . . Cannons 465 | . . 465 . . Explosions 11473 | . . 128 4009 7336 Melee . | . . . . . Ramming 4 | . . 4 . . Kinetic 754 | . . 754 . . Thermal 1087 | 166 79 786 . 56 Explosive 11289 | . . . 4009 7280 Electromagnetic 465 | . . 465 . . Impact . | . . . . . Slashing . | . . . . . Piercing . | . . . . . Highest Corruption 12 | . . 12 12 . Average Corruption 7 | . . 5 12 . Corruption Purged . | . . . . . Corruption Blocked . | . . . . . Effects 25 | . . 12 13 . Message Errors 11 | . . 7 4 . Matter Fused 3 | . . 1 2 . Heat Flow Errors 4 | . . 2 2 . Energy Discharges 2 | . . 1 1 . Data Loss (minor) 4 | . . 1 3 . Data Loss (major) 1 | . . . 1 . Overload Shots . | . . . . . Overflow Damage 3585 | . . . 1137 2448 Projectiles . | . . . . . Explosions 3585 | . . . 1137 2448 Melee . | . . . . . Knockbacks . | . . . . . Impact . | . . . . . Kinetic . | . . . . . Secondary . | . . . . . Self-Inflicted Damage 1008 | . . 32 660 316 Shots 5 | . . 1 2 2 Rammed . | . . . . . Targets Rammed 1 | . . 1 . . Kicked 1 | . . 1 . . Crushed . | . . . . . Highest Temperature 260 | 70 44 256 260 . Average Temperature 35 | 29 16 35 112 . Received Heat Transfer 462 | . . 453 . 9 Siege Activations . | . . . . . Martial Activations . | . . . . . Shielding Activations . | . . . . . Robots Disrupted . | . . . . . Combat Hostiles . | . . . . . Robots Corrupted 1 | . . 1 . . Combat Hostiles 1 | . . 1 . . Parts Fried 3 | . . 3 . . Impact Corruptions . | . . . . . Robots Melted . | . . . . . Combat Hostiles . | . . . . . Parts Melted 2 | 1 . 1 . . Heat Transferred 2368 | 481 187 1650 . 50 Parts Sabotaged . | . . . . . Parts Stolen . | . . . . . Parts Stripped . | . . . . . Power Chain Reactions 2 | . . 2 . . Alert | -11 -10 -9 -9 -8 ------- Run | Yrd Mat Mat Min Mat Maximum Alert Level 2 | . . 1 . 2 Low Security (%) 76 | 100 100 65 100 44 Level 1 23 | . . 34 . 51 Level 2 . | . . . . 3 Level 3 . | . . . . . Level 4 . | . . . . . Level 5 . | . . . . . High Security . | . . . . . Max Security . | . . . . . Peak Influence 488 | 5 60 293 132 488 Initial 56 | . . 25 56 51 Average 99 | 1 3 133 46 190 Influence Increases 1545 | 15 81 692 232 525 Destroy 0b10 Robot/C 800 | . 60 480 100 160 Destroy 0b10 Robot/NC 85 | 15 5 35 . 30 Destroy Leader 192 | . 10 138 10 34 Successful Hack 2 | . . 2 . . Disable Machine 105 | . . . 45 60 Anti-Garrison Action 150 | . . . . 150 Destroy Structure 181 | . 6 7 77 91 Lose Combat Pursuer 30 | . . 30 . . Influence Decreases 1029 | 15 21 606 246 141 Entered New Map 206 | . . 35 90 81 Time Decay 643 | 15 21 411 156 40 Lost Part 30 | . . 10 . 20 Purge Threat 150 | . . 150 . . Squads Dispatched 6 | . . 3 . 3 Investigation 2 | . . 2 . . Extermination . | . . . . . Reinforcement 2 | . . 1 . 1 Assault 2 | . . . . 2 Garrison . | . . . . . Intercept . | . . . . . Searches Triggered . | . . . . . Construction Impeded . | . . . . . Haulers Reinforced . | . . . . . Active Scanning Responses . | . . . . . Cargo Convoy Interrupts . | . . . . . Stealth | -11 -10 -9 -9 -8 --------- Run | Yrd Mat Mat Min Mat Distress Signals 3 | . . 3 . . Communications Jammed . | . . . . . Distress Signals . | . . . . . Times Spotted 49 | . 4 35 . 10 Peak Tracking Total 5 | . 4 5 . 4 Tactical Retreats 2 | . . 2 . . Traps | -11 -10 -9 -9 -8 ------- Run | Yrd Mat Mat Min Mat Traps Triggered 3 | . . 3 . . Indirectly . | . . . . . Trap Hack Attempts . | . . . . . Triggered . | . . . . . Disarmed . | . . . . . Reprogrammed . | . . . . . Reused . | . . . . . Traps Extracted . | . . . . . Installed . | . . . . . Triggered . | . . . . . Machines | -11 -10 -9 -9 -8 ---------- Run | Yrd Mat Mat Min Mat Machines Disabled 8 | . . . 3 5 Max in Single Turn 2 | . . . 2 2 Garrison Access 1 | . . . . 1 Machines Repaired . | . . . . . Machines Dismantled . | . . . . . Machines Sabotaged . | . . . . . Overloaded Fab Kills . | . . . . . Hacking | -11 -10 -9 -9 -8 --------- Run | Yrd Mat Mat Min Mat Machines Accessed 3 | . . 3 . . Terminals 1 | . . 1 . . Fabricators . | . . . . . Repair Stations . | . . . . . Recycling Units . | . . . . . Scanalyzers 2 | . . 2 . . Garrison Access . | . . . . . Total Hacks 7 | . . 7 . . Successful 6 | . . 6 . . Failed 1 | . . 1 . . Catastrophic . | . . . . . Database Lockouts . | . . . . . Manual 2 | . . 2 . . Terminals 3 | . . 3 . . Fabricators . | . . . . . Repair Stations . | . . . . . Recycling Units . | . . . . . Scanalyzers 4 | . . 4 . . Garrison Access . | . . . . . Terminal Hacks 2 | . . 2 . . Alert Level 1 | . . 1 . . Unreport Threat 1 | . . 1 . . Fabricator Hacks . | . . . . . Repair Station Hacks . | . . . . . Recycling Unit Hacks . | . . . . . Scanalyzer 4 | . . 4 . . Retrieve Study 4 | . . 4 . . Garrison Access Hacks . | . . . . . Unauthorized Hacks . | . . . . . Terminals . | . . . . . Fabricators . | . . . . . Repair Stations . | . . . . . Recycling Units . | . . . . . Scanalyzers . | . . . . . Garrison Access . | . . . . . Data Cores Recovered . | . . . . . Used . | . . . . . Hacking Detections 1 | . . 1 . . Full Trace Events . | . . . . . Feedback Events . | . . . . . Feedback Blocked . | . . . . . Robot Schematics Acquired . | . . . . . Robots Built . | . . . . . Authchips . | . . . . . Time . | . . . . . Total Robot Build Rating . | . . . . . Part Schematics Acquired . | . . . . . Parts Built . | . . . . . Authchips . | . . . . . Time . | . . . . . Total Part Build Rating . | . . . . . Part Studies Acquired 3 | . . 3 . . Parts Repaired . | . . . . . Time . | . . . . . Parts Recycled . | . . . . . Recycled Matter . | . . . . . Retrieved Matter . | . . . . . Retrieved Components . | . . . . . Parts Scanalyzed . | . . . . . Part Schematics Acquired . | . . . . . Parts Damaged . | . . . . . Bothacking | -11 -10 -9 -9 -8 ------------ Run | Yrd Mat Mat Min Mat Used RIF Installer . | . . . . . Robots Hacked . | . . . . . Non-combat . | . . . . . Combat . | . . . . . Robot Hacks Applied . | . . . . . Relay Couplers Released . | . . . . . Fabnet Peak Effective % . | . . . . . Robots Rewired . | . . . . . Allies Hacked . | . . . . . Hacks Repelled . | . . . . . Allies | -11 -10 -9 -9 -8 -------- Run | Yrd Mat Mat Min Mat Total Allies . | . . . . . Largest Group . | . . . . . Highest-Rated Group . | . . . . . Highest-Rated Ally . | . . . . . Total Orders . | . . . . . Ally Attacks . | . . . . . Total Damage . | . . . . . Kills . | . . . . . Allies Corrupted . | . . . . . Allies Melted . | . . . . . Intel | -11 -10 -9 -9 -8 ------- Run | Yrd Mat Mat Min Mat Active Infowar (turns) 1748 | 20 187 1101 351 89 Terrain 1748 | 20 187 1101 351 89 Robot Analysis Total . | . . . . . Derelict Logs Recovered . | . . . . . Drone Launches . | . . . . . Drone Recoveries . | . . . . . Exploration | -11 -10 -9 -9 -8 ------------- Run | Yrd Mat Mat Min Mat Turns Passed 1820 | 92 187 1101 351 89 Spaces Moved 1066 | 39 111 578 277 61 Core 6 | 6 . . . . Treads . | . . . . . Legs 1060 | 33 111 578 277 61 Wheels . | . . . . . Hover . | . . . . . Flight . | . . . . . Fastest Speed 50 | 50 120 105 105 105 Average Speed 111 | 109 120 113 105 105 Slowest Speed 175 | 120 120 175 105 105 Overloaded Moves . | . . . . . Propulsion Burnouts . | . . . . . Robots Hopped . | . . . . . Potential Cave-ins 2 | . 2 . . . Cave-ins Triggered . | . . . . . Exploration Rate (%) 42 | 4 29 77 85 18 Regions Visited 4 Branch Regions 1 Pre-discovered Areas . | . . . . . Known Exits Taken . | . . . . . Unknown Exits Taken 4 | 1 1 1 1 . Scrap Searched 3 | . . . 3 . Spaces Dug 86 | . 8 . 22 56 Terrain Destroyed 234 | . 8 5 113 108 Melee . | . . . . . Projectile 8 | . 8 . . . AOE 226 | . . 5 113 108 Terrain Rammed . | . . . . . Walls Destroyed . | . . . . . Machines Disabled . | . . . . . Actions | -11 -10 -9 -9 -8 --------- Run | Yrd Mat Mat Min Mat Total 1459 | 71 130 867 319 72 Wait 177 | 13 . 147 17 . Move 1062 | 38 110 577 276 61 Hop . | . . . . . Pick Up 3 | . . 1 2 . Fast Attach 10 | 6 1 1 . 2 Attach 3 | . . 2 1 . Detach 2 | . . 2 . . Swap 12 | . 2 8 2 . Drop 4 | . . 1 3 . Fire 137 | 14 17 89 9 8 Melee . | . . . . . Ram . | . . . . . Kick 1 | . . 1 . . Crush . | . . . . . Escape Stasis . | . . . . . Rewire 2 | . . . 2 . Trap . | . . . . . Miscellaneous 46 | . . 38 7 1 Route ------- -11/Scrapyard -10/Materials (discovered 2 exits: *Mat x2) -9/Materials (discovered 4 exits: [*Mat] / [*Min x2] / [*Sto]) -9/Mines (discovered 2 exits: [*Mat x2]) -8/Materials (discovered 1 exit: [*Fac]) History --------- Turn | Location | Event 1 | -11/Scrapyard | Upgraded with Propulsion slot (x1) 1 | -11/Scrapyard | Upgraded with Utility slot (x2) 6 | -11/Scrapyard | Discovered new exit (range 16) 93 | -11/Scrapyard | Entered Materials 168 | -10/Materials | Discovered new exit (range 16) 249 | -10/Materials | Discovered new exit (range 9) 280 | -10/Materials | Entered another Materials area 282 | -9/Materials | Reached level 2 282 | -9/Materials | Upgraded with Weapon slot (x1) 300 | -9/Materials | Build established: Mutant 434 | -9/Materials | Discovered new exit (range 16) 533 | -9/Materials | Discovered new exit (range 16) 685 | -9/Materials | Reached level 3 746 | -9/Materials | Destroyed 8 combat bots 786 | -9/Materials | Core integrity fell below 50% 829 | -9/Materials | Discovered new exit (range 7) 919 | -9/Materials | Build established: Scavenger-Mutant 942 | -9/Materials | Discovered new exit (range 15) 1148 | -9/Materials | Reached level 4 1173 | -9/Materials | System corruption reached 10% 1364 | -9/Materials | Build established: Mutant 1381 | -9/Materials | Entered Mines 1557 | -9/Mines | Assisted by bots powering up and referring to "LRC-V3" 1614 | -9/Mines | Assembled infested the area 1653 | -9/Mines | Reached level 5 1705 | -9/Mines | Destroyed 11 combat bots 1718 | -9/Mines | Discovered new exit (range 5) 1727 | -9/Mines | Discovered new exit (range 12) 1732 | -9/Mines | Entered Materials 1733 | -8/Materials | Core integrity fell below 50% 1734 | -8/Materials | Reached level 6 1784 | -8/Materials | Core integrity fell below 20% 1812 | -8/Materials | Discovered new exit (range 13) 1818 | -8/Materials | Reached level 7 1821 | -8/Materials | Destroyed self via exploding Fusion Modulator Last Messages --------------- 01812_ EXIT=FOUND 01812_ ALERT: Suspicious intruders detected, dispatching Specialist reinforcements to area. 01813_ Acquired Imp. Grenade Launcher. 01815_ X-62 Marksman destroyed. 01815_ U-05 Engineer lays Concrete. 01815_ K-01 Serf collects debris. 01816_ Acquired 52 matter. 01816_ U-05 Engineer builds a Wall. 01818_ ALERT: Garrison Access compromised, dispatching multiple assault carriers. 01818_ Garrison Access disabled. 01818_ Reached level 7. 01818_ Destroyed Imp. Deuterium Engine. 01818_ X-62 Marksman destroyed. 01819_ Acquired 24 matter. 01820_ U-05 Engineer builds a Door. 01821_ Destroyed Arm. Huge Wheel. 01821_ Destroyed Imp. Ion Engine. 01821_ Fusion Modulator explodes. Map ----- +----------------------------------------------------+ | | | | | | | | | | | | | | | | | | | | | | | ????????????????????????#?????????????????????#??? | | ????????????????#?#???#??#???????##?????###??????? | | ???????????????#?????##??##??#??????????## ??? ??? | | ???????????????#??#?#?#?##??###??#?????#????? ??#? | | ?????????????#????##??#?#???# ? #?#?"?" ?? | | ??????????????#?##???####?#?# """ ?"? ###??""? ??? | | ????????????#?????#### ????# """ """ ##?#""" # | | ???????????????????#?# ?? ?# """ "?? #?##? ? ?#? | | ?????????????????##??# ?? ?# ? #######??## | | ??????????? # ??????## ?? # ? ? + ? ? ? ? | | ????????? # H ###### ?? # [ # ? ? | | ??????????" C; ; ?? # ? ??? ?# #?###+## | | ????????????+ ;;;;;;#+## ######### ### # | | ??????????"?# C + ## ### # | | ????????????# @ """## ### # | | ???????????# # """## # | | ???????? # u+* """# # [ | | ?????????? ?# # ? + " # | | ????????????# " # """# * ! | | ????????????+ " [%[ ## """# | | | ????????????# %! ## """###### | | ??????????? # ## ##?##### | | ????????????# ##############?# | | ????????????# #? ? ??##?####?# | | ????????????# #? """####?#### / | | ????????????# +? ?"""######### | | ????????????#% # #???"""######?## | | ????????????? ## # ? ?? ?#?###### | | ??????????????? ?# #? ? ? ###??##?# | | ??????????????????# ### ?####?######??## "" | | ??????????????????????# ##+??????###?#?#### | | ??????????????????????? ????????? ##?#?########+## | | ??????????????????????????????????# ?? ? ?# | | ??????????????????????????????????? # | | ??????????????????????????????????#?? ?? ?? + " | | ????????????????????????????????? # ????? ??# | | | ????????????????????????????????? ???? ?? # | | ????????????????????????????????" ?#?#???##### # | | ????????????????????????????????? ??#?????#??# # | +----------------------------------------------------+ Best States ------------- Heat Dissipation 37 Energy Generation 14 Energy Capacity 265 Matter Stores 300 Matter Capacity 300 Sight Range 18 Robot Scan Range 12 Terrain Scan Range 16 Terrain Scan Density 210 Armor Coverage 150 Resistance: EX 10 Power Shielding 33 Evasion (%) 55 Defensive Hacking 5 Item Schematics ----------------- None Robot Schematics ------------------ None Fabricated ------------ Nothing Repaired ---------- Nothing Studied --------- Aluminum Leg | -9/Materials | Hacked Imp. Ion Engine | -9/Materials | Hacked Sml. Laser | -9/Materials | Hacked Alien Tech Used ----------------- None Achievements -------------- Quick And Dirty Challenges ------------ None RPGLIKE | -11 -10 -9 -9 -8 --------- Run | Yrd Mat Mat Min Mat Levels Raised 6 | . . 3 1 2 XP Earned 12682 | 3000 350 4550 1275 3507 XP Spent 10415 | 2965 . 4475 1525 1450 Upgrades 37 | 9 . 20 4 4 Propulsion Slot 1 | 1 . . . . Utility Slot 2 | 2 . . . . Weapon Slot 1 | . . 1 . . Core Integrity 8 | . . 8 . . Heat Dissipation 2 | . . 2 . . Mass Support 1 | . . . . 1 Inventory Capacity 2 | . . 2 . . Sight Range 2 | . . 1 1 . Sensor Range 6 | 2 . 2 2 . Terrain Scan Density 2 | 2 . . . . Ranged Accuracy 7 | 2 . 3 1 1 Hack Defense % 1 | . . 1 . . EX Resistance % 2 | . . . . 2 Protomatter Created 502 | . . 374 81 47 Integrity Restored 978 | . . 834 141 3 Core 978 | . . 834 141 3 Protomatter Decayed 124 | . . 96 7 21 Game ------ Seed AmyLove Manual? 1 Play Time 00:22:48 Cumulative 33.1 hours Start 2026.03.21 @ 22:21:18 End 2026.03.21 @ 22:42:15 Sessions 1 Manual Loads 0 Difficulty Rogue Special Mode Winter2019/RPGLIKE Game No. 24 Rogue 21 Adventurer 0 Explorer 3 Win Type - Total 3 Types 1/0/0/2/0/0/0/0/0/0 Lore% 17 Gallery% 25 Achievement% 31 Wizard Run 0 Options --------- Layout 0 ASCII 0 Keyboard 1 Movement Numpad Keybinds 0 Fullscreen 1 Font 20/Smallcaps Map View 66x50 Zoom Use 0% Tactical HUD 1 Map Filters NONE Filters NONE Steam 1 RUN: 4bdccb62-0aa9-42b8-af7f-97f1bc8718e7